bitfinex/quotes_ETHUSD_20240614
["timestamp","ask_amount","ask_price","bid_price","bid_amount"]
[1718398350787,0.00346253,3413.6,3413.2,2.92978]
[1718398350985,0.07240401,3413.6,3413.3,2.92963]
[1718398351124,0.45309326,3413.6,3413.3,2.92963]
[1718398351826,0.45309326,3413.6,3413.2,2.92978]
[1718398351827,0.45309326,3413.6,3413.4,2.92961]
[1718398352222,6.8993,3413.5,3413.4,2.92961]
[1718398352923,6.96817105,3413.5,3413.4,2.92961]
[1718398353551,6.96817105,3413.5,3413.3,2.92969]
[1718398354828,0.06887105,3413.5,3413.3,2.92969]
[1718398355031,0.06887105,3413.5,3413.4,2.92963]
[1718398356438,0.06887105,3413.5,3413.4,5.85926]
[1718398356957,0.06887105,3413.5,3413.4,6.73326]
[1718398357159,0.06887105,3413.5,3413.4,9.66289]
[1718398360528,0.06887105,3413.5,3413.4,8.78889]
[1718398360733,0.06887105,3413.5,3413.4,9.66289]
[1718398363784,0.06887105,3413.5,3413.4,5.85926]
[1718398363966,2.99843105,3413.5,3413.2,2.92974]
[1718398364631,2.92966,3413.4,3413.1,2.92988]
[1718398365076,0.06866193,3413.3,3413.1,2.92988]
[1718398366745,2.99837193,3413.3,3413.1,2.92988]
[1718398367671,2.99837193,3413.3,3413.0,2.92994]
[1718398367836,2.99837193,3413.3,3413.1,2.92988]
[1718398369579,2.99837193,3413.3,3412.9,0.1202373]
[1718398369580,10.18427,3413.0,3412.9,0.1202373]
[1718398369787,13.98824,3413.0,3412.9,0.1202373]
[1718398369955,0.06837064,3413.0,3412.9,3.0502873]
[1718398370139,10.18409,3413.3,3412.9,0.1202373]
[1718398370340,0.06813914,3413.0,3412.9,0.1202373]
[1718398370540,2.92981,3413.2,3412.9,3.0502873]
[1718398370895,0.06813914,3413.0,3412.9,3.0502873]
[1718398371081,2.92981,3413.2,3412.9,3.0502873]
[1718398371375,5.85994,3413.0,3412.9,0.1202373]
[1718398371739,5.92807914,3413.0,3412.9,0.1202373]
[1718398371939,17.99509428,3413.0,3412.9,0.1202373]
[1718398372376,17.12109428,3413.0,3412.9,0.1202373]
[1718398372578,20.14006711,3413.0,3412.9,0.1202373]
[1718398375206,17.21009711,3413.0,3412.9,0.1202373]
[1718398375500,12.84668197,3413.0,3412.9,0.1202373]
[1718398375801,15.77665197,3413.0,3412.9,0.1202373]
[1718398376001,12.84668197,3413.0,3412.9,0.1202373]
[1718398376393,6.01708197,3413.0,3412.9,0.1202373]
[1718398378578,5.14308197,3413.0,3412.9,0.1202373]
[1718398378878,3.87210914,3413.0,3412.9,0.1202373]
[1718398379306,2.99810914,3413.0,3412.9,0.1202373]
[1718398380580,5.92807914,3413.0,3412.9,0.1202373]
[1718398384114,6.80207914,3413.0,3412.9,0.1202373]
[1718398384410,11.16549428,3413.0,3412.9,0.1202373]
[1718398384598,12.57503071,3413.0,3412.9,0.1202373]
[1718398385023,11.70103071,3413.0,3412.9,0.1202373]
[1718398385189,12.57503071,3413.0,3412.9,0.1202373]
[1718398386571,12.50689157,3413.0,3412.9,0.1202373]
[1718398386799,12.57426216,3413.0,3412.9,0.1202373]
[1718398387387,19.58136216,3413.0,3412.9,0.1202373]
[1718398390756,25.51133216,3413.0,3412.9,0.1202373]
[1718398391057,24.63733216,3413.0,3412.9,0.1202373]
[1718398391194,25.51133216,3413.0,3412.9,0.1202373]
[1718398392392,25.18733216,3413.0,3412.9,0.1202373]
[1718398392592,26.06133216,3413.0,3412.9,0.1202373]
[1718398393213,22.58136216,3413.0,3412.9,0.1202373]
[1718398396148,21.70736216,3413.0,3412.9,0.1202373]
[1718398396435,22.58136216,3413.0,3412.9,0.1202373]
[1718398400143,0.0555,3412.5,3411.6,2.93111]
[1718398400477,0.0555,3412.5,3411.5,2.93123]
[1718398400478,3.80504,3411.8,3411.5,2.93123]
[1718398400677,2.88141955,3411.7,3411.4,2.93134]
[1718398400991,2.94822724,3411.7,3411.4,2.93134]
[1718398401988,2.88141955,3411.7,3411.4,2.93134]
[1718398402214,0.06678775,3411.6,3411.4,2.93134]
[1718398402858,0.06678775,3411.6,3411.5,7.2227]
[1718398403606,5.92912775,3411.6,3411.5,7.2227]
[1718398404378,2.93132,3411.5,3411.2,10.15421]
[1718398404726,2.93134,3411.4,3411.2,10.15421]
[1718398404913,0.0664983,3411.4,3411.2,10.15421]
[1718398405406,2.93119,3411.6,3411.2,10.15421]
[1718398405600,2.93127,3411.5,3411.2,7.2227]
[1718398405803,2.93119,3411.6,3411.2,7.2227]
[1718398406102,2.93119,3411.6,3411.3,2.93143]
[1718398406278,2.93452253,3411.8,3411.5,2.93126]
[1718398406484,2.93452253,3411.8,3411.3,2.93143]
[1718398406485,2.93109,3411.7,3411.4,2.93132]
[1718398406806,0.00346253,3411.8,3411.3,2.93136]
[1718398407018,0.00346253,3411.8,3411.5,2.93118]
[1718398407311,0.00346253,3411.8,3411.4,2.93131]
[1718398407312,0.00346253,3411.8,3411.6,2.93117]
[1718398409684,0.06649749,3411.7,3411.6,2.93117]
[1718398410096,0.00346253,3411.8,3411.6,2.93117]
[1718398410416,0.06649749,3411.7,3411.6,2.93117]
[1718398410709,0.00346253,3411.8,3411.6,2.93117]
[1718398410918,0.06649069,3411.7,3411.6,2.93117]
[1718398411279,0.00346253,3411.8,3411.6,2.93117]
[1718398411480,0.06649069,3411.7,3411.6,2.93117]
[1718398412318,0.00346253,3411.8,3411.6,2.93117]
[1718398412610,0.06649069,3411.7,3411.6,2.93117]
[1718398412794,0.00346253,3411.8,3411.6,2.93117]
[1718398412994,0.06649069,3411.7,3411.6,2.93117]
[1718398413195,0.00346253,3411.8,3411.6,2.93117]
[1718398413391,0.06649069,3411.7,3411.6,2.93117]
[1718398413596,0.00346253,3411.8,3411.6,2.93117]
[1718398413911,0.06649069,3411.7,3411.6,2.93117]
[1718398414287,0.00346253,3411.8,3411.6,2.93117]
[1718398414498,0.06649069,3411.7,3411.6,2.93117]
[1718398414799,0.00346253,3411.8,3411.6,2.93117]
[1718398415005,0.06649069,3411.7,3411.6,2.93117]
[1718398415315,0.00346253,3411.8,3411.6,2.93117]
[1718398415615,0.06653705,3411.7,3411.6,2.93117]
[1718398415815,0.00346253,3411.8,3411.6,2.93117]
[1718398416021,0.06653705,3411.7,3411.6,2.93117]
[1718398416225,0.00346253,3411.8,3411.6,2.93117]
[1718398416427,0.06653705,3411.7,3411.6,2.93117]
[1718398416727,0.00346253,3411.8,3411.6,2.93117]
[1718398416936,0.06653705,3411.7,3411.6,2.93117]
[1718398417246,0.00346253,3411.8,3411.6,2.93117]
[1718398417427,0.06653705,3411.7,3411.6,2.93117]
[1718398417643,0.00346253,3411.8,3411.6,2.93117]
[1718398417788,0.06653705,3411.7,3411.6,2.93117]
[1718398418215,0.00346253,3411.8,3411.6,2.93117]
[1718398418417,0.06653705,3411.7,3411.6,2.93117]
[1718398418601,0.00346253,3411.8,3411.6,2.93117]
[1718398418800,0.06653705,3411.7,3411.6,2.93117]
[1718398419024,0.00346253,3411.8,3411.6,2.93117]
[1718398419195,0.06653705,3411.7,3411.6,2.93117]
[1718398419523,2.93446253,3411.8,3411.5,2.93124]
[1718398419692,0.06653705,3411.7,3411.5,2.93124]
[1718398420093,2.93446253,3411.8,3411.5,2.93124]
[1718398420324,0.06651712,3411.6,3411.5,2.93124]
[1718398420528,2.93446253,3411.8,3411.5,2.93124]
[1718398420705,0.06651712,3411.6,3411.5,2.93124]
[1718398420902,2.93446253,3411.8,3411.5,2.93124]
[1718398421417,0.06653705,3411.7,3411.5,2.93124]
[1718398421624,2.93446253,3411.8,3411.5,2.93124]
[1718398421827,0.06651712,3411.6,3411.5,2.93124]
[1718398422031,2.93446253,3411.8,3411.5,2.93124]
[1718398422333,0.06651712,3411.6,3411.5,2.93124]
[1718398422502,2.93446253,3411.8,3411.5,2.93124]
[1718398422708,0.06651712,3411.6,3411.5,2.93124]
[1718398422904,2.93446253,3411.8,3411.5,2.93124]
[1718398423406,0.06653705,3411.7,3411.5,2.93124]
[1718398423610,2.93133,3411.5,3411.2,10.1542]
[1718398423805,2.93141,3411.4,3411.2,7.2227]
[1718398424010,2.99789404,3411.4,3411.2,7.2227]
[1718398424219,2.99789404,3411.4,3411.2,10.1542]
[1718398424433,0.06648404,3411.4,3411.3,2.93143]
[1718398424630,2.9311,3411.7,3411.3,2.93143]
[1718398424813,2.99774322,3411.6,3411.3,2.93143]
[1718398428116,2.99774322,3411.6,3411.4,2.93134]
[1718398428455,0.06651322,3411.6,3411.5,14.70188]
[1718398428670,0.00346253,3411.8,3411.7,5.86218]
[1718398428881,0.06820452,3411.8,3411.7,5.86218]
[1718398429091,0.06820452,3411.8,3411.7,8.79327]
[1718398429949,0.00346253,3411.8,3411.7,8.79327]
[1718398431143,0.00346253,3411.8,3411.7,16.73036]
[1718398431346,0.00346253,3411.8,3411.7,17.60436]
[1718398431552,0.00346253,3411.8,3411.7,18.21685321]
[1718398431753,0.00346253,3411.8,3411.7,17.34285321]
[1718398431956,0.00346253,3411.8,3411.7,18.21685321]
[1718398433135,0.00346253,3411.8,3411.7,53.21685321]
[1718398433872,0.00346253,3411.8,3411.7,55.55195271]
[1718398434077,0.00346253,3411.8,3411.7,54.67795271]
[1718398434232,0.00346253,3411.8,3411.7,55.55195271]
[1718398434777,2.88337253,3413.1,3412.8,2.93013]
[1718398434948,2.92981,3413.2,3412.8,2.93013]
[1718398435165,0.05775199,3413.0,3412.8,2.93013]
[1718398435366,4.36325514,3413.2,3412.8,2.93013]
[1718398435668,1.14599651,3413.1,3412.8,2.93013]
[1718398435829,0.05775199,3413.0,3412.8,2.93013]
[1718398436867,0.05775199,3413.0,3412.9,2.93005]
[1718398438527,0.05775199,3413.0,3412.8,2.93013]
[1718398438792,0.05775199,3413.0,3412.9,2.93005]
[1718398440079,3.0,3413.2,3412.9,2.93005]
[1718398440248,0.05773577,3413.1,3412.9,2.93005]
[1718398442364,0.05773577,3413.1,3412.8,2.93013]
[1718398442365,0.05773577,3413.1,3413.0,2.92997]
[1718398442684,2.92981,3413.2,3413.0,2.92997]
[1718398442975,0.05800678,3413.1,3412.9,2.93003]
[1718398444748,0.05800678,3413.1,3412.8,2.93013]
[1718398445683,2.98794678,3413.1,3412.8,2.93013]
[1718398449053,0.05800678,3413.1,3412.8,2.93013]
[1718398449590,0.02800678,3413.1,3412.8,2.93013]
[1718398449830,0.05698769,3413.1,3412.9,2.93004]
[1718398450355,2.84079769,3413.2,3412.9,2.93004]
[1718398450756,0.05510122,3413.1,3412.9,2.93004]
[1718398452198,0.05510122,3413.1,3413.0,7.77857]
[1718398452403,0.05510122,3413.1,3413.0,13.63851]
[1718398452599,2.92951,3413.6,3413.3,2.92967]
[1718398453105,13.23937,3413.7,3413.4,2.9296]
[1718398453253,14.67281514,3413.7,3413.4,2.9296]
[1718398454886,15.54681514,3413.7,3413.4,2.9296]
[1718398455086,1.84761651,3413.6,3413.4,2.9296]
[1718398457270,0.05534938,3413.5,3413.4,2.9296]
[1718398457467,14.67281514,3413.7,3413.4,2.9296]
[1718398457696,0.05534786,3413.6,3413.5,2.92947]
[1718398458657,0.05534786,3413.6,3413.4,2.9296]
[1718398460860,2.98480786,3413.6,3413.4,2.9296]
[1718398463001,0.05534786,3413.6,3413.5,4.6127]
[1718398463169,0.05534786,3413.6,3413.5,14.27532]
[1718398463369,0.05534786,3413.6,3412.4,0.61162305]
[1718398463726,0.874,3413.6,3413.2,7.52099]
[1718398463923,0.874,3413.6,3413.4,2.92961]
[1718398464081,2.98118831,3413.5,3413.2,2.92978]
[1718398464266,3.80352,3413.6,3413.2,2.92978]
[1718398464465,3.80352,3413.6,3413.3,2.92971]
[1718398464775,0.05167257,3413.5,3413.3,2.92971]
[1718398465179,2.98123257,3413.5,3413.3,2.92971]
[1718398465600,2.92972,3413.3,3413.1,2.92988]
[1718398465817,2.92964,3413.4,3413.1,2.92988]
[1718398466023,0.0516335,3413.2,3413.1,2.92988]
[1718398466168,2.92964,3413.4,3413.1,2.92988]
[1718398466368,0.04982664,3413.2,3413.1,2.92988]
[1718398466594,2.92964,3413.4,3413.1,2.92988]
[1718398466801,0.04982664,3413.2,3413.1,2.92988]
[1718398466972,2.92964,3413.4,3413.1,2.92988]
[1718398467172,0.04982664,3413.2,3413.1,2.92988]
[1718398467406,2.92964,3413.4,3413.1,2.92988]
[1718398467589,0.04980128,3413.2,3413.1,2.92988]
[1718398468106,2.92963,3413.4,3413.1,2.92988]
[1718398468294,0.04980128,3413.2,3413.1,2.92988]
[1718398468610,2.92963,3413.4,3413.2,2.92979]
[1718398468803,4.36300514,3413.5,3413.2,2.92979]
[1718398469617,0.04985146,3413.4,3413.2,2.92979]
[1718398469775,0.04985146,3413.4,3413.1,2.92988]
[1718398469776,0.04985146,3413.4,3413.3,2.92971]
[1718398470518,0.04985146,3413.4,3413.3,11.71884]
[1718398470668,0.04985146,3413.4,3413.3,16.70354]
[1718398470872,3.28105127,3415.7,3413.9,3.9961]
[1718398470873,2.92825,3415.0,3413.9,3.9961]
[1718398471189,6.73094,3414.8,3414.4,2.92872]
[1718398471386,0.874,3414.6,3414.4,2.92872]
[1718398471575,0.874,3414.6,3414.3,2.92883]
[1718398471576,0.52359651,3414.5,3414.3,2.92883]
[1718398471775,0.57172064,3414.5,3414.3,2.92883]
[1718398474572,2.92886,3414.3,3414.0,2.92909]
[1718398474911,0.04808827,3414.2,3414.0,2.92909]
[1718398475095,2.92886,3414.3,3414.0,2.92909]
[1718398475305,2.97702827,3414.2,3414.0,2.92909]
[1718398476198,0.04808827,3414.2,3414.0,2.92909]
[1718398476595,2.92888,3414.3,3414.0,2.92909]
[1718398476792,0.04831533,3414.1,3414.0,2.92909]
[1718398476979,2.92888,3414.3,3414.0,2.92909]
[1718398477203,0.04831533,3414.1,3414.0,2.92909]
[1718398477424,2.92888,3414.3,3414.0,2.92909]
[1718398477583,0.04831533,3414.1,3414.0,2.92909]
[1718398477783,2.92888,3414.3,3414.0,2.92909]
[1718398477978,0.04831533,3414.1,3414.0,2.92909]
[1718398478522,2.92894,3414.2,3413.9,2.92914]
[1718398478819,0.04831533,3414.1,3414.0,2.9291]
[1718398480884,2.92887,3414.3,3414.0,2.9291]
[1718398481085,0.04833524,3414.2,3414.0,2.9291]
[1718398481283,2.92887,3414.3,3414.0,2.9291]
[1718398481488,0.04833093,3414.2,3414.0,2.9291]
[1718398481791,2.92887,3414.3,3414.0,2.9291]
[1718398481987,0.04831533,3414.1,3414.0,2.9291]
[1718398482215,2.92887,3414.3,3414.0,2.9291]
[1718398482705,0.04833524,3414.2,3414.0,2.9291]
[1718398483020,2.92887,3414.3,3414.0,2.9291]
[1718398483227,0.04722406,3414.1,3414.0,2.9291]
[1718398483429,2.92887,3414.3,3414.0,2.9291]
[1718398483793,0.04724397,3414.2,3414.0,2.9291]
[1718398484194,2.92879,3414.4,3414.1,2.92902]
[1718398484630,0.04788143,3414.3,3414.1,2.92902]
[1718398485929,0.04788143,3414.3,3414.2,9.90558]
[1718398486306,3.0,3414.5,3414.4,2.92877]
[1718398486519,0.04793907,3414.5,3414.4,2.92877]
[1718398486706,3.0,3414.7,3414.4,2.92877]
[1718398487029,3.0,3414.7,3414.3,2.92885]
[1718398487030,2.97657897,3414.6,3414.3,2.92885]
[1718398487224,3.0,3414.5,3414.3,2.92885]
[1718398487632,0.04791917,3414.4,3414.3,2.92885]
[1718398487825,2.97674917,3414.4,3414.1,2.92896]
[1718398494755,2.97674917,3414.4,3414.2,2.92893]
[1718398494919,2.97674917,3414.4,3414.0,2.92909]
[1718398495845,5.90558917,3414.4,3414.0,2.92909]
[1718398496222,2.97674917,3414.4,3414.0,2.92909]
[1718398497559,2.92887,3414.3,3414.0,2.92909]
[1718398497925,0.04798921,3414.2,3414.0,2.92909]
[1718398498162,2.92887,3414.3,3414.0,2.92909]
[1718398498475,0.04801926,3414.1,3414.0,2.92909]
[1718398498636,2.92887,3414.3,3414.1,2.92902]
[1718398499627,5.9287,3414.5,3413.9,3.9938]
[1718398499628,2.97697917,3414.2,3413.9,3.9938]
[1718398499947,0.04803917,3414.2,3414.0,2.92911]
[1718398500384,2.92877,3414.4,3414.1,2.92902]
[1718398500558,2.92888,3414.3,3414.0,2.92909]
[1718398501163,2.92911,3414.0,3413.6,2.92943]
[1718398501327,2.92948,3413.6,3413.4,2.92958]
[1718398501527,2.92956,3413.5,3413.2,2.92979]
[1718398502262,2.92956,3413.5,3413.3,2.92971]
[1718398505080,2.92948,3413.6,3413.3,2.92971]
[1718398506070,4.36292514,3413.6,3413.2,2.92979]
[1718398506274,2.92956,3413.5,3413.2,2.92979]
[1718398507534,1.43344514,3413.5,3413.1,2.92988]
[1718398507734,2.92964,3413.4,3413.1,2.92988]
[1718398507977,2.92972,3413.3,3413.1,2.92988]
[1718398509458,2.92972,3413.3,3412.9,2.93001]
[1718398509459,2.92972,3413.3,3413.0,2.92994]
[1718398510080,2.92972,3413.3,3413.1,2.92987]
[1718398510277,2.9298,3413.2,3413.0,2.92994]
[1718398512567,2.92973,3413.3,3413.0,2.92994]
[1718398513672,2.92981,3413.2,3412.9,2.93003]
[1718398513879,5.09245665,3413.3,3412.9,2.93003]
[1718398513880,2.92989,3413.1,3412.9,2.93003]
[1718398514480,2.92997,3413.0,3412.8,6.17634]
[1718398514682,2.93007,3412.9,3412.7,2.93022]
[1718398515064,0.04448615,3412.8,3412.7,2.93022]
[1718398515379,0.04448615,3412.8,3412.5,7.10099]
[1718398515546,0.04448615,3412.8,3412.7,2.93023]
[1718398516385,0.04448615,3412.8,3412.6,2.93028]
[1718398517253,2.97462615,3412.8,3412.6,2.93028]
[1718398518087,0.04448615,3412.8,3412.6,2.93028]
[1718398518675,2.97464615,3412.8,3412.6,2.93028]
[1718398519287,2.97464615,3412.8,3412.5,6.22697]
[1718398520654,2.93031,3412.6,3412.3,3.3926]
[1718398520857,2.93031,3412.6,3412.4,2.93048]
[1718398521082,0.04409083,3412.5,3412.4,2.93048]
[1718398521383,0.04409083,3412.5,3412.3,6.32314]
[1718398522788,3.8485641,3412.4,3412.1,2.93069]
[1718398523095,2.93058,3412.3,3412.1,2.93069]
[1718398523383,0.04397749,3412.2,3412.1,2.93069]
[1718398523589,0.04397749,3412.2,3411.9,6.24254]
[1718398523590,2.97468749,3412.2,3412.0,2.93081]
[1718398524102,0.04397749,3412.2,3411.9,6.24261]
[1718398524399,0.04397749,3412.2,3412.1,6.20174]
[1718398524753,2.93032,3412.6,3412.2,2.93058]
[1718398524954,0.04373308,3412.5,3412.1,6.20174]
[1718398525484,0.04373308,3412.5,3412.4,5.24978]
[1718398525790,3.0,3412.6,3412.4,5.24978]
[1718398525991,0.04373628,3412.5,3412.4,5.24978]
[1718398527068,0.04373628,3412.5,3412.4,8.18026]
[1718398527789,3.0,3412.7,3412.5,2.93037]
[1718398528313,3.0,3412.7,3412.6,5.86062]
[1718398528458,7.31,3413.0,3412.6,5.86062]
[1718398528459,3.0,3412.9,3412.7,2.93016]
[1718398528826,3.0,3412.9,3412.8,5.20644]
[1718398529118,3.0,3413.0,3412.8,5.20644]
[1718398529524,3.0,3413.0,3412.9,2.93005]
[1718398529725,2.92972,3413.3,3413.0,2.92994]
[1718398529923,1.43344514,3413.2,3413.0,2.92994]
[1718398530493,2.92946,3413.6,3413.3,2.92965]
[1718398530825,1.43344514,3413.6,3413.3,2.92965]
[1718398531040,0.52368451,3413.5,3413.3,2.92965]
[1718398531892,3.52368451,3413.5,3413.3,2.92965]
[1718398533530,3.52368451,3413.5,3413.2,2.92977]
[1718398533531,6.45322451,3413.5,3413.2,2.92977]
[1718398534816,7.32722451,3413.5,3413.2,2.92977]
[1718398535715,6.45322451,3413.5,3413.2,2.92977]
[1718398535924,5.92954,3413.5,3413.2,2.92977]
[1718398536310,6.80354,3413.5,3413.2,2.92977]
[1718398542957,3.0,3413.5,3413.1,5.28687]
[1718398543250,3.80338,3413.7,3413.5,2.2561]
[1718398543453,5.23682514,3413.7,3413.5,2.2561]
[1718398543614,2.92921,3413.9,3413.6,2.92945]
[1718398543818,4.36265514,3413.9,3413.6,2.92945]
[1718398544023,2.92916,3414.0,3413.6,2.92944]
[1718398544249,4.36260514,3414.0,3413.6,2.92944]
[1718398544560,4.36260514,3414.0,3413.7,2.92931]
[1718398544763,0.04437863,3413.9,3413.7,2.92931]
[1718398553074,2.97357863,3413.9,3413.7,2.92931]
[1718398554484,3.79458401,3413.9,3413.7,2.92931]
[1718398555101,3.79458401,3413.9,3413.6,2.92943]
[1718398555374,0.04437863,3413.9,3413.5,5.18562]
[1718398555678,0.04437863,3413.9,3413.8,5.42398]
[1718398558306,0.04437863,3413.9,3413.8,11.28254]
[1718398558438,0.04437863,3413.9,3413.8,12.15654]
[1718398558643,2.9287,3414.5,3414.1,2.92896]
[1718398558893,4.36214514,3414.5,3414.1,2.92896]
[1718398559078,0.04210055,3414.4,3414.1,2.92896]
[1718398559702,0.04210055,3414.4,3414.2,2.92891]
[1718398563602,0.04210055,3414.4,3414.3,2.4936]
[1718398564386,0.04210055,3414.4,3414.3,5.42245]
[1718398564570,7.31,3415.3,3414.7,2.92847]
[1718398564571,2.9283,3415.0,3414.7,2.92847]
[1718398564769,1.47446402,3414.9,3414.8,2.4233]
[1718398565959,4.40280402,3414.9,3414.8,2.4233]
[1718398566310,1.47446402,3414.9,3414.8,2.4233]
[1718398566515,4.40280402,3414.9,3414.8,2.4233]
[1718398566934,4.40280402,3414.9,3414.6,2.35]
[1718398566935,2.92845,3414.8,3414.6,2.35]
[1718398567408,0.03989919,3414.7,3414.6,2.35]
[1718398567632,2.92845,3414.8,3414.6,2.35]
[1718398567908,0.03989919,3414.7,3414.6,2.35]
[1718398568312,2.92845,3414.8,3414.6,2.35]
[1718398568523,0.03989919,3414.7,3414.6,2.35]
[1718398568825,2.92845,3414.8,3414.6,2.35]
[1718398568978,0.03989919,3414.7,3414.6,2.35]
[1718398569313,2.92845,3414.8,3414.6,2.35]
[1718398569514,0.03989919,3414.7,3414.6,2.35]
[1718398569915,2.92845,3414.8,3414.6,2.35]
[1718398570140,0.03989919,3414.7,3414.6,2.35]
[1718398570531,2.92845,3414.8,3414.6,2.35]
[1718398570818,0.03989919,3414.7,3414.6,2.35]
[1718398571188,2.92845,3414.8,3414.6,2.35]
[1718398571394,0.03989919,3414.7,3414.6,2.35]
[1718398571600,2.92845,3414.8,3414.6,2.35]
[1718398571830,0.03989919,3414.7,3414.6,2.35]
[1718398572119,0.03989919,3414.7,3414.6,5.2786]
[1718398572279,2.92845,3414.8,3414.6,5.2786]
[1718398572478,0.03989919,3414.7,3414.6,2.35]
[1718398573224,2.92845,3414.8,3414.6,2.35]
[1718398573410,0.03989919,3414.7,3414.6,2.35]
[1718398573579,2.92845,3414.8,3414.6,2.35]
[1718398573991,0.03989919,3414.7,3414.6,2.35]
[1718398574191,2.92845,3414.8,3414.6,2.35]
[1718398574386,0.03989919,3414.7,3414.6,5.27859]
[1718398574597,2.92845,3414.8,3414.6,5.27859]
[1718398574791,0.03989919,3414.7,3414.6,5.27859]
[1718398574988,2.92845,3414.8,3414.6,5.27859]
[1718398575433,0.03989919,3414.7,3414.6,5.27859]
[1718398575810,4.36181514,3414.9,3414.6,5.27859]
[1718398575998,0.03991909,3414.8,3414.6,5.27859]
[1718398576817,2.92851,3414.7,3414.6,2.35]
[1718398577031,3.36868342,3414.7,3414.6,2.35]
[1718398577231,3.40851974,3414.7,3414.6,2.35]
[1718398577435,0.03983632,3414.7,3414.6,2.35]
[1718398577728,0.03983632,3414.7,3414.6,5.2786]
[1718398577940,4.36179514,3414.9,3414.7,2.9285]
[1718398582753,3.0,3415.3,3415.0,2.9282]
[1718398582941,4.43344514,3415.3,3415.1,2.3846]
[1718398583103,1.43344514,3415.3,3415.1,2.3846]
[1718398583421,4.36144514,3415.3,3415.1,2.3846]
[1718398584844,4.36144514,3415.3,3415.0,2.9282]
[1718398585006,0.81633451,3415.2,3415.0,2.9282]
[1718398585206,3.74442451,3415.2,3415.0,2.9282]
[1718398586618,3.74442451,3415.2,3414.9,2.92831]
[1718398587626,3.74442451,3415.2,3414.9,5.35801]
[1718398587951,2.92809,3415.2,3414.9,5.35801]
[1718398589414,0.04002925,3415.1,3414.9,5.35801]
[1718398589953,2.92851,3414.7,3414.6,2.3001]
[1718398590161,2.92902,3414.1,3414.0,2.3001]
[1718398590472,0.03996587,3414.1,3414.0,2.3001]
[1718398590811,2.92869,3414.5,3414.2,2.92891]
[1718398591272,2.92862,3414.6,3414.3,2.92885]
[1718398591469,2.92862,3414.6,3414.4,2.2686]
[1718398592491,2.92862,3414.6,3414.4,5.19737]
[1718398593247,2.92862,3414.6,3414.4,2.2686]
[1718398595582,7.31,3414.9,3414.5,2.92868]
[1718398595875,3.0,3414.8,3414.5,2.92868]
[1718398596165,2.9283,3415.0,3414.5,2.92868]
[1718398596166,3.0,3414.9,3414.5,2.92868]
[1718398596474,2.92851,3414.7,3414.5,2.92868]
[1718398598263,2.92851,3414.7,3414.4,5.19734]
[1718398598847,2.92844,3414.8,3414.5,2.92868]
[1718398599053,3.0,3414.7,3414.5,2.92868]
[1718398599463,2.92844,3414.8,3414.5,2.92868]
[1718398601948,2.92837,3414.9,3414.7,2.4133]
[1718398603194,3.0,3415.3,3414.9,2.92828]
[1718398603195,5.92804,3415.3,3414.9,2.92828]
[1718398603479,2.92809,3415.2,3415.0,2.92825]
[1718398604248,2.92793,3415.4,3415.0,2.92825]
[1718398604249,2.928,3415.3,3415.1,2.3867]
[1718398605455,3.0,3415.5,3415.1,5.31485]
[1718398605655,2.92777,3415.6,3415.2,2.92802]
[1718398605865,3.0,3415.5,3415.2,2.92802]
[1718398606153,3.0,3415.5,3415.3,2.92798]
[1718398607193,5.92784,3415.5,3415.2,2.92805]
[1718398607754,2.92791,3415.4,3415.2,2.92805]
[1718398608899,2.92791,3415.4,3415.1,5.31484]
[1718398609969,2.92802,3415.3,3415.1,5.31484]
[1718398610288,5.8565,3415.0,3414.9,2.4467]
[1718398610862,2.92842,3414.9,3414.7,2.398]
[1718398612003,2.92842,3414.9,3414.7,5.3265]
[1718398612187,2.92842,3414.9,3414.7,2.398]
[1718398613521,2.92826,3415.0,3414.7,2.398]
[1718398613818,2.92826,3415.0,3414.7,5.32648]
[1718398613980,2.92834,3414.9,3414.7,5.32648]
[1718398617829,2.92827,3415.0,3414.8,2.92842]
[1718398619491,0.03829092,3414.9,3414.7,5.32649]
[1718398619814,2.92842,3414.8,3414.7,2.398]
[1718398620107,2.96669102,3414.8,3414.7,2.398]
[1718398620607,2.92853,3414.7,3414.3,5.35435]
[1718398620797,2.96689121,3414.6,3414.3,5.35435]
[1718398621196,0.03823121,3414.6,3414.4,2.92874]
[1718398622010,0.03823121,3414.6,3414.5,2.3815]
[1718398622305,0.03823121,3414.6,3414.5,5.31018]
[1718398622754,2.92843,3414.8,3414.5,5.31018]
[1718398622896,0.03823121,3414.6,3414.5,5.31018]
[1718398623091,2.92843,3414.8,3414.6,2.92859]
[1718398625378,2.92843,3414.8,3414.5,5.31017]
[1718398625574,1.92709949,3414.8,3414.5,2.3815]
[1718398625778,2.92874,3414.5,3414.2,2.4796]
[1718398626099,2.92885,3414.3,3414.2,2.4796]
[1718398626301,2.92885,3414.3,3413.8,5.40881]
[1718398626516,2.92885,3414.3,3414.0,2.9291]
[1718398627538,2.92878,3414.4,3414.2,5.39593]
[1718398629629,2.92869,3414.5,3414.2,5.39593]
[1718398630533,2.92877,3414.4,3414.2,5.39593]
[1718398630825,2.9287,3414.5,3414.3,2.3645]
[1718398631017,2.92861,3414.6,3414.3,2.3645]
[1718398631018,2.92877,3414.4,3414.3,2.3645]
[1718398631217,2.92877,3414.4,3414.2,2.92893]
[1718398632309,2.92871,3414.5,3414.2,2.92893]
[1718398634541,0.03790214,3414.4,3414.2,2.92893]
[1718398635038,0.03790214,3414.4,3414.3,2.4469]
[1718398642549,0.03790214,3414.4,3414.3,8.3046]
[1718398642933,2.92851,3414.7,3414.4,2.92873]
[1718398643639,4.36187514,3414.8,3414.5,2.92862]
[1718398643939,3.0,3414.7,3414.5,2.92862]
[1718398649451,0.03670145,3414.6,3414.5,2.92862]
[1718398653546,0.03670145,3414.6,3414.4,2.92875]
[1718398654854,0.03670145,3414.6,3414.3,5.37574]
[1718398655356,0.03670145,3414.6,3414.4,2.92875]
[1718398657128,0.03670145,3414.6,3414.5,2.4519]